bitfinex/quotes_BTCUSD_20240101
["timestamp","ask_amount","ask_price","bid_price","bid_amount"]
[1704106960343,0.0362,42795.0,42794.0,0.06902616]
[1704106960776,0.07524098,42795.0,42794.0,0.06902616]
[1704106961250,0.24270651,42795.0,42794.0,0.06902616]
[1704106964664,0.07524098,42795.0,42794.0,0.06902616]
[1704106965313,0.13141186,42795.0,42794.0,0.06902616]
[1704106965751,0.13134088,42795.0,42794.0,0.06902616]
[1704106966175,0.07524098,42795.0,42794.0,0.06902616]
[1704106966394,0.13134082,42795.0,42794.0,0.06902616]
[1704106966645,0.07524098,42795.0,42794.0,0.06902616]
[1704106966858,0.13134082,42795.0,42794.0,0.06902616]
[1704106967065,0.07524098,42795.0,42794.0,0.06902616]
[1704106967292,0.13134082,42795.0,42794.0,0.06902616]
[1704106967511,0.07524098,42795.0,42794.0,0.06530707]
[1704106967733,0.18745097,42795.0,42794.0,0.06530707]
[1704106967948,0.18745097,42795.0,42794.0,0.05884]
[1704106968162,0.07524098,42795.0,42794.0,0.05884]
[1704106968373,0.18744704,42795.0,42794.0,0.05884]
[1704106968608,0.07524098,42795.0,42794.0,0.05884]
[1704106968823,0.21572081,42795.0,42794.0,0.05884]
[1704106969036,0.07524098,42795.0,42794.0,0.05884]
[1704106969479,0.18744204,42795.0,42794.0,0.05884]
[1704106969685,0.07524098,42795.0,42794.0,0.05884]
[1704106969906,0.15939105,42795.0,42794.0,0.05884]
[1704106970137,0.18744127,42795.0,42794.0,0.05884]
[1704106970575,0.15938904,42795.0,42794.0,0.05884]
[1704106970811,0.07524098,42795.0,42794.0,0.05884]
[1704106971031,0.18744127,42795.0,42794.0,0.05884]
[1704106971487,0.39260524,42795.0,42794.0,0.05884]
[1704106971698,1.43648848,42795.0,42794.0,0.05884]
[1704106971952,1.40821045,42795.0,42794.0,0.05884]
[1704106972601,1.43648848,42795.0,42794.0,0.05884]
[1704106972806,1.4082062,42795.0,42794.0,0.002]
[1704106973004,1.4082062,42795.0,42794.0,0.05884]
[1704106973241,1.3530062,42795.0,42794.0,0.05884]
[1704106973448,1.3990862,42795.0,42794.0,0.05884]
[1704106973656,1.3530062,42795.0,42794.0,0.05884]
[1704106973886,1.02867021,42795.0,42794.0,0.05884]
[1704106977609,0.56132621,42795.0,42794.0,0.05884]
[1704106979007,0.15938345,42795.0,42794.0,0.05884]
[1704106979220,0.07524098,42795.0,42794.0,0.06255909]
[1704106979430,0.07524098,42795.0,42794.0,0.06902113]
[1704106980240,0.13133473,42795.0,42794.0,0.06902113]
[1704106980498,0.07524098,42795.0,42794.0,0.06902113]
[1704106980707,0.07524098,42795.0,42794.0,0.06255909]
[1704106980925,0.0362,42795.0,42794.0,0.06255909]
[1704106981155,0.07524761,42795.0,42794.0,0.06255909]
[1704106981599,0.0362,42795.0,42794.0,0.06255909]
[1704106982266,0.0362,42795.0,42794.0,0.52991409]
[1704106982485,0.0362,42795.0,42794.0,0.53638128]
[1704106985672,0.0312,42795.0,42794.0,0.53538128]
[1704106986105,0.0312,42795.0,42794.0,0.06802628]
[1704106986334,0.0312,42795.0,42794.0,0.53538128]
[1704106986749,0.0262,42795.0,42794.0,0.53438128]
[1704106986967,0.0262,42795.0,42794.0,0.53638128]
[1704106986968,0.0362,42795.0,42794.0,0.53638128]
[1704106987412,0.0262,42795.0,42794.0,0.06702628]
[1704106987626,0.0262,42795.0,42794.0,0.07002628]
[1704106987849,0.0262,42795.0,42794.0,0.07202628]
[1704106995344,0.0262,42795.0,42794.0,0.37202628]
[1704106995568,0.0262,42795.0,42794.0,1.01899839]
[1704106995801,0.0262,42795.0,42794.0,1.31899839]
[1704106998737,0.0262,42795.0,42794.0,1.01899839]
[1704106998943,0.0262,42795.0,42794.0,1.31899839]
[1704107000179,0.0262,42795.0,42794.0,1.37101839]
[1704107000594,0.0262,42795.0,42794.0,1.34899839]
[1704107000796,0.0262,42795.0,42794.0,1.40089839]
[1704107001213,0.0262,42795.0,42794.0,1.34899839]
[1704107001613,0.0262,42795.0,42794.0,1.40119839]
[1704107001839,0.0262,42795.0,42794.0,1.86855339]
[1704107002248,0.0262,42795.0,42794.0,1.87855339]
[1704107003059,0.0262,42795.0,42794.0,1.87655339]
[1704107003287,0.0272,42795.0,42794.0,1.88555339]
[1704107003474,0.0272,42795.0,42794.0,1.88255339]
[1704107003685,0.0282,42795.0,42794.0,1.89255339]
[1704107004313,0.0282,42795.0,42794.0,1.88255339]
[1704107004517,0.0282,42795.0,42794.0,1.89255339]
[1704107005627,0.0282,42795.0,42794.0,1.36299839]
[1704107005828,0.0282,42795.0,42794.0,1.37299839]
[1704107006895,0.0282,42795.0,42794.0,1.07299839]
[1704107007097,0.0282,42795.0,42794.0,1.37299839]
[1704107007337,0.0282,42795.0,42794.0,1.07299839]
[1704107007551,0.0282,42795.0,42794.0,1.06299839]
[1704107007771,0.0282,42795.0,42794.0,0.59338128]
[1704107009654,0.0282,42795.0,42794.0,0.57338128]
[1704107009857,0.0282,42795.0,42794.0,0.10230719]
[1704107010004,0.03849,42795.0,42794.0,0.11230719]
[1704107010406,0.08499,42795.0,42794.0,0.10584]
[1704107010658,0.03849,42795.0,42794.0,0.10584]
[1704107010996,0.03749,42795.0,42794.0,0.09684]
[1704107011400,0.03649,42795.0,42794.0,0.08684]
[1704107011791,0.03649,42795.0,42794.0,0.08784]
[1704107016393,0.03649,42795.0,42794.0,0.08748529]
[1704107021050,0.03649,42795.0,42794.0,0.09391874]
[1704107021531,0.0262,42795.0,42794.0,0.09763783]
[1704107021734,0.0262,42795.0,42794.0,0.09120438]
[1704107021956,0.0262,42795.0,42794.0,0.09767714]
[1704107040575,0.0262,42795.0,42794.0,0.09395805]
[1704107041142,0.0262,42795.0,42794.0,0.08748529]
[1704107041340,0.0262,42795.0,42794.0,0.07748529]
[1704107041341,0.29848942,42795.0,42794.0,0.07748529]
[1704107041546,0.84017342,42795.0,42794.0,0.07748529]
[1704107041751,1.22052919,42795.0,42794.0,0.07748529]
[1704107041901,1.38246314,42795.0,42794.0,0.07748529]
[1704107042105,1.58196314,42795.0,42794.0,0.07748529]
[1704107042403,1.73129096,42795.0,42794.0,0.07648529]
[1704107042603,1.63793096,42795.0,42794.0,0.07648529]
[1704107042805,1.64793096,42795.0,42794.0,0.07848529]
[1704107047526,1.67093096,42795.0,42794.0,0.07848529]
[1704107047732,1.76789096,42795.0,42794.0,0.07848529]
[1704107048048,1.67093096,42795.0,42794.0,0.07848529]
[1704107048608,1.76411096,42795.0,42794.0,0.07848529]
[1704107048808,1.7921064,42795.0,42794.0,0.07848529]
[1704107050422,1.82024296,42795.0,42794.0,0.07848529]
[1704107051032,1.67473415,42795.0,42794.0,0.07848529]
[1704107051240,2.07035833,42795.0,42794.0,0.032]
[1704107051828,2.07035833,42795.0,42794.0,0.031]
[1704107052028,2.06535833,42795.0,42794.0,0.031]
[1704107052247,2.20724587,42795.0,42794.0,0.032]
[1704107052470,2.07335833,42795.0,42794.0,0.032]
[1704107052650,2.36407488,42795.0,42794.0,0.031]
[1704107053062,2.36707488,42795.0,42794.0,0.031]
[1704107053403,2.37507488,42795.0,42794.0,0.032]
[1704107053606,2.54412058,42795.0,42794.0,0.032]
[1704107053968,2.94540403,42795.0,42794.0,0.032]
[1704107054994,2.77635833,42795.0,42794.0,0.032]
[1704107055931,2.92771582,42795.0,42794.0,0.032]
[1704107056620,2.22771582,42795.0,42794.0,0.032]
[1704107056834,2.36768947,42795.0,42794.0,0.032]
[1704107057033,2.22771582,42795.0,42794.0,0.032]
[1704107058085,2.36767751,42795.0,42794.0,0.032]
[1704107058735,2.25295751,42795.0,42794.0,0.032]
[1704107061632,2.34397751,42795.0,42794.0,0.032]
[1704107062040,2.25079751,42795.0,42794.0,0.032]
[1704107062261,2.34187751,42795.0,42794.0,0.032]
[1704107062825,2.19052002,42795.0,42794.0,0.032]
[1704107063026,2.35802953,42795.0,42794.0,0.032]
[1704107063435,2.35358793,42795.0,42794.0,0.032]
[1704107065174,1.41889993,42795.0,42794.0,0.032]
[1704107065384,2.19052002,42795.0,42794.0,0.032]
[1704107065599,2.35633971,42795.0,42794.0,0.032]
[1704107065802,2.89052002,42795.0,42794.0,0.032]
[1704107066715,3.19204958,42795.0,42794.0,0.032]
[1704107067143,3.32711488,42795.0,42794.0,0.032]
[1704107067354,3.34415169,42795.0,42794.0,0.032]
[1704107067570,3.19204958,42795.0,42794.0,0.032]
[1704107068030,0.0279783,42796.0,42795.0,0.35055909]
[1704107068375,0.0262,42797.0,42796.0,0.60695909]
[1704107068682,0.0262,42797.0,42796.0,1.3075092]
[1704107068894,0.0262,42797.0,42796.0,0.84715256]
[1704107069106,0.10604613,42798.0,42797.0,0.16055909]
[1704107069321,0.10604613,42798.0,42797.0,0.8610982]
[1704107069530,0.004,42799.0,42798.0,0.00371909]
[1704107069745,0.004,42799.0,42798.0,0.2937762]
[1704107069966,0.1274769,42810.0,42798.0,0.2937762]
[1704107069967,0.169075,42813.0,42808.0,0.06055909]
[1704107070177,0.26970711,42812.0,42808.0,0.06055909]
[1704107070865,0.25470711,42812.0,42808.0,0.06055909]
[1704107071299,0.0202,42812.0,42810.0,0.00371909]
[1704107071535,0.0292,42812.0,42810.0,0.05684]
[1704107071771,0.0292,42812.0,42810.0,0.06055909]
[1704107072019,0.0202,42812.0,42810.0,0.06055909]
[1704107072263,0.0262,42812.0,42810.0,0.05684]
[1704107072692,0.0172,42812.0,42810.0,0.05684]
[1704107072917,0.0172,42812.0,42811.0,0.00684604]
[1704107073139,0.0222,42812.0,42811.0,0.00684604]
[1704107073354,0.0112,42812.0,42810.0,0.06055909]
[1704107073567,0.0162,42812.0,42811.0,0.00684604]
[1704107073779,0.0222,42812.0,42810.0,0.06255909]
[1704107073983,0.0172,42812.0,42811.0,0.00684604]
[1704107074227,0.0222,42812.0,42811.0,0.00784604]
[1704107074453,0.0222,42812.0,42811.0,0.00471909]
[1704107074454,0.0162,42812.0,42811.0,0.00471909]
[1704107074712,0.0162,42812.0,42811.0,0.01156513]
[1704107074930,0.0162,42812.0,42811.0,0.01256513]
[1704107074931,0.0222,42812.0,42811.0,0.01256513]
[1704107075602,0.0222,42812.0,42811.0,0.00884604]
[1704107075814,0.20979872,42812.0,42811.0,0.00884604]
[1704107076050,0.08196,42812.0,42811.0,0.00884604]
[1704107076274,0.08196,42812.0,42811.0,0.002]
[1704107077508,0.0222,42812.0,42811.0,0.002]
[1704107078161,0.07038,42812.0,42811.0,0.002]
[1704107078367,0.0222,42812.0,42811.0,0.002]
[1704107078806,0.06834,42812.0,42811.0,0.002]
[1704107080486,0.22594517,42812.0,42811.0,0.002]
[1704107080726,0.22494517,42812.0,42811.0,0.002]
[1704107081286,0.06734,42812.0,42811.0,0.002]
[1704107081517,0.0212,42812.0,42811.0,0.002]
[1704107081718,0.06638,42812.0,42811.0,0.002]
[1704107082782,0.0212,42812.0,42811.0,0.002]
[1704107083364,0.0671,42812.0,42811.0,0.002]
[1704107086241,0.96375602,42812.0,42811.0,0.002]
[1704107086451,0.98967602,42812.0,42811.0,0.002]
[1704107087623,1.22317602,42812.0,42811.0,0.002]
[1704107087834,1.37146249,42812.0,42811.0,0.002]
[1704107088054,1.67146249,42812.0,42811.0,0.002]
[1704107088289,1.56880249,42812.0,42811.0,0.002]
[1704107089423,1.46880249,42812.0,42811.0,0.002]
[1704107089666,1.42944249,42812.0,42811.0,0.002]
[1704107090589,1.23316158,42812.0,42811.0,0.002]
[1704107090761,1.42944249,42812.0,42811.0,0.002]
[1704107093031,1.23316158,42812.0,42811.0,0.002]
[1704107093469,1.21834158,42812.0,42811.0,0.002]
[1704107096018,1.41462249,42812.0,42811.0,0.002]
[1704107096234,1.21834158,42812.0,42811.0,0.002]
[1704107097277,1.41462249,42812.0,42811.0,0.002]
[1704107097892,1.31834158,42812.0,42811.0,0.002]
[1704107098130,1.41462249,42812.0,42811.0,0.002]
[1704107099454,1.21834158,42812.0,42811.0,0.002]
[1704107099658,1.16986158,42812.0,42811.0,0.002]
[1704107099875,1.21540158,42812.0,42811.0,0.002]
[1704107100969,1.16986158,42812.0,42811.0,0.002]
[1704107101389,1.21666158,42812.0,42811.0,0.002]
[1704107101619,1.16986158,42812.0,42811.0,0.002]
[1704107101801,1.20640684,42812.0,42811.0,0.002]
[1704107102046,1.25860684,42812.0,42811.0,0.002]
[1704107102477,0.79144884,42812.0,42811.0,0.002]
[1704107102694,1.25860684,42812.0,42811.0,0.002]
[1704107105775,0.79144884,42812.0,42811.0,0.002]
[1704107105997,1.25860684,42812.0,42811.0,0.002]
[1704107107099,1.20640684,42812.0,42811.0,0.002]
[1704107107315,0.82490326,42812.0,42811.0,0.002]
[1704107108195,0.87038326,42812.0,42811.0,0.002]
[1704107109114,0.82490326,42812.0,42811.0,0.002]
[1704107109698,0.87200326,42812.0,42811.0,0.002]
[1704107110877,0.88993326,42812.0,42811.0,0.002]
[1704107113573,0.94587345,42812.0,42811.0,0.002]
[1704107114240,1.0391603,42812.0,42811.0,0.002]
[1704107114452,1.03930249,42812.0,42811.0,0.002]
[1704107114659,0.93612011,42812.0,42811.0,0.002]
[1704107114889,0.99220232,42812.0,42811.0,0.002]
[1704107115311,0.89891547,42812.0,42811.0,0.002]
[1704107115514,0.97338015,42812.0,42811.0,0.002]
[1704107115715,0.945535,42812.0,42811.0,0.002]
[1704107115826,0.88945326,42812.0,42811.0,0.002]
[1704107116248,0.97338015,42812.0,42811.0,0.002]
[1704107117279,0.88945326,42812.0,42811.0,0.002]
[1704107117490,0.97338015,42812.0,42811.0,0.002]
[1704107119448,0.84283326,42812.0,42811.0,0.002]
[1704107119682,0.88951326,42812.0,42811.0,0.002]
[1704107120088,1.00141578,42812.0,42811.0,0.002]
[1704107120501,1.25761578,42812.0,42811.0,0.002]
[1704107120944,1.71543215,42812.0,42811.0,0.002]
[1704107121613,1.71543613,42812.0,42811.0,0.002]
[1704107121832,1.57521128,42812.0,42811.0,0.002]
[1704107122039,1.71543522,42812.0,42811.0,0.002]
[1704107122436,1.57521128,42812.0,42811.0,0.002]
[1704107123849,1.71543877,42812.0,42811.0,0.002]
[1704107124060,1.57521128,42812.0,42811.0,0.002]
[1704107124880,1.71544272,42812.0,42811.0,0.002]
[1704107125511,1.57521128,42812.0,42811.0,0.002]
[1704107126153,1.57521128,42812.0,42811.0,0.00571909]
[1704107126154,1.23926464,42812.0,42811.0,0.00571909]
[1704107126359,1.44818629,42812.0,42811.0,0.002]
[1704107126772,1.3079502,42812.0,42811.0,0.002]
[1704107127404,1.44818661,42812.0,42811.0,0.002]
[1704107127613,1.3079502,42812.0,42811.0,0.002]
[1704107128032,1.44819167,42812.0,42811.0,0.002]
[1704107128240,1.3079502,42812.0,42811.0,0.002]
[1704107128455,1.54116731,42812.0,42811.0,0.002]
[1704107128691,1.76000822,42812.0,42811.0,0.002]
[1704107131571,2.49531595,42812.0,42811.0,0.002]
[1704107131979,2.32716622,42812.0,42811.0,0.002]
[1704107144294,1.86000822,42812.0,42811.0,0.002]
[1704107144508,2.32716622,42812.0,42811.0,0.002]
[1704107150577,1.86000822,42812.0,42811.0,0.002]
[1704107150945,2.32716622,42812.0,42811.0,0.002]
[1704107151161,1.39285022,42812.0,42811.0,0.002]
[1704107151594,2.32716622,42812.0,42811.0,0.002]
[1704107154130,1.39285022,42812.0,42811.0,0.002]
[1704107154359,2.32716622,42812.0,42811.0,0.002]
[1704107155225,2.3370457,42812.0,42811.0,0.002]
[1704107155437,2.97929998,42812.0,42811.0,0.002]
[1704107155670,3.15679484,42812.0,42811.0,0.002]
[1704107155876,3.16846214,42812.0,42811.0,0.002]
[1704107156090,3.34449656,42812.0,42811.0,0.002]
[1704107156324,3.30952826,42812.0,42811.0,0.001]
[1704107156565,3.23024141,42812.0,42811.0,0.002]
[1704107156824,3.31085181,42812.0,42811.0,0.002]
[1704107156995,3.31085181,42812.0,42803.0,0.05]
[1704107156996,0.29628091,42804.0,42803.0,0.05]
[1704107157245,1.43686613,42804.0,42803.0,0.05]
[1704107157456,1.55381928,42804.0,42803.0,0.05799759]
[1704107157664,1.82621928,42804.0,42803.0,0.05799759]
[1704107158294,1.82621928,42804.0,42803.0,0.00799759]
[1704107158717,0.29628091,42802.0,42801.0,15.5]
[1704107158924,1.17335417,42802.0,42801.0,15.5]
[1704107159373,1.26767417,42802.0,42801.0,15.5]
[1704107159584,1.23964129,42802.0,42801.0,15.5]
[1704107159791,1.24164129,42802.0,42801.0,15.5]
[1704107159994,1.33385938,42802.0,42801.0,15.5]
[1704107160200,1.22185028,42802.0,42801.0,15.5]
[1704107160822,1.22385028,42802.0,42801.0,15.5]
[1704107161035,1.36389417,42802.0,42801.0,15.5]
[1704107161243,1.78999206,42802.0,42801.0,15.5]
[1704107161666,1.69777206,42802.0,42801.0,15.5]
[1704107161879,1.66971597,42802.0,42801.0,15.5]
[1704107162086,1.76763597,42802.0,42801.0,15.5]
[1704107162296,1.66971597,42802.0,42801.0,15.5]
[1704107162501,1.76727597,42802.0,42801.0,15.5]
[1704107163524,1.51559515,42802.0,42801.0,15.5]
[1704107163731,1.43163028,42802.0,42801.0,15.5]
[1704107164184,1.51559495,42802.0,42801.0,15.5]
[1704107164790,1.51559495,42802.0,42801.0,15.50805405]
[1704107165241,1.43163028,42802.0,42801.0,15.50805405]
[1704107165919,1.51559495,42802.0,42801.0,15.50805405]
[1704107166144,1.40985028,42802.0,42801.0,15.50805405]
[1704107167200,1.46581219,42802.0,42801.0,15.50805405]
[1704107167890,1.11356937,42802.0,42801.0,15.55489405]
[1704107168105,0.304,42802.0,42801.0,15.55489405]
[1704107168310,0.004,42802.0,42801.0,15.55489405]
[1704107168730,0.004,42802.0,42801.0,15.55861314]
[1704107168939,0.004,42802.0,42801.0,15.56861314]
[1704107169638,0.002,42802.0,42801.0,15.56861314]
[1704107169853,0.004,42802.0,42801.0,15.56861314]
[1704107170720,0.002,42802.0,42801.0,15.56861314]
[1704107170937,0.3,42806.0,42801.0,15.56861314]
[1704107171149,0.002,42802.0,42801.0,15.56861314]
[1704107171357,0.001,42802.0,42801.0,15.57361314]
[1704107171564,0.002,42802.0,42801.0,15.57961314]
[1704107171772,0.001,42802.0,42801.0,15.57461314]
[1704107171989,0.301,42806.0,42804.0,0.00371909]
[1704107172203,0.001,42806.0,42804.0,0.00371909]
[1704107172409,0.36625191,42807.0,42805.0,0.05488416]
[1704107172610,0.0365516,42806.0,42805.0,0.05488416]
[1704107173021,0.3365516,42806.0,42805.0,0.05488416]
[1704107175133,0.3375516,42806.0,42805.0,0.05488416]
[1704107180908,0.001,42806.0,42805.0,0.06860325]
[1704107181739,0.69339228,42810.0,42805.0,0.06860325]
[1704107181894,0.78885625,42809.0,42808.0,0.05684]
[1704107182169,0.84482853,42809.0,42808.0,0.05684]
[1704107182763,0.78885625,42809.0,42808.0,0.05684]
[1704107183137,0.84482853,42809.0,42808.0,0.05684]
[1704107184155,0.84782853,42809.0,42808.0,0.05684]
[1704107184801,0.32866525,42809.0,42808.0,0.05684]
[1704107184965,1.34479237,42809.0,42808.0,0.04684]
[1704107185166,1.81470361,42809.0,42808.0,0.04684]
[1704107185384,2.28189461,42809.0,42808.0,0.04629529]
[1704107186031,2.16795461,42809.0,42808.0,0.04629529]
[1704107186542,0.76349391,42807.0,42806.0,0.04575058]
[1704107186761,1.14894502,42807.0,42806.0,0.04575058]
[1704107186968,1.14894502,42807.0,42806.0,0.05373565]
[1704107187169,1.21284502,42807.0,42806.0,0.05373565]
[1704107187595,1.38067825,42807.0,42806.0,0.05373565]
[1704107187798,1.49364502,42807.0,42806.0,0.05373565]
[1704107189680,0.99844615,42807.0,42806.0,0.05373565]
[1704107189924,1.31777825,42807.0,42806.0,0.05373565]
[1704107190135,1.36643825,42807.0,42806.0,0.0525108]
[1704107190303,1.45041915,42807.0,42806.0,0.0525108]
[1704107190711,1.40175915,42807.0,42806.0,0.0525108]
[1704107191117,1.42626658,42807.0,42806.0,0.0525108]
[1704107191322,1.45425915,42807.0,42806.0,0.0525108]
[1704107192134,1.37027825,42807.0,42806.0,0.0525108]
[1704107192422,1.45426637,42807.0,42806.0,0.0525108]
[1704107192782,0.31734814,42807.0,42806.0,0.06622989]
[1704107192985,0.001,42807.0,42806.0,0.06622989]
[1704107195485,0.001,42807.0,42806.0,0.06122989]
[1704107200620,0.2532,42807.0,42806.0,0.06122989]
[1704107202313,0.001,42807.0,42806.0,0.06122989]
[1704107202539,0.001,42807.0,42806.0,0.52845389]
[1704107203361,0.001,42807.0,42806.0,0.52345389]
[1704107203577,0.0102,42812.0,42811.0,0.00371909]
[1704107203780,0.0573,42812.0,42811.0,0.03701997]
[1704107203988,0.0573,42812.0,42811.0,0.0449592]
[1704107204799,0.0102,42812.0,42811.0,0.0449592]
[1704107205682,0.0112,42812.0,42811.0,0.0449592]
[1704107218896,0.0112,42812.0,42811.0,0.03701997]
[1704107219655,0.0112,42812.0,42811.0,0.04494581]
[1704107221242,0.0112,42812.0,42811.0,0.06848493]
[1704107230193,0.0112,42812.0,42811.0,0.06055909]
[1704107230431,0.0112,42812.0,42811.0,0.06848936]
[1704107233145,0.0112,42812.0,42811.0,0.06477027]
[1704107233563,0.0112,42812.0,42811.0,0.06848936]
[1704107235377,0.43408458,42812.0,42811.0,0.06477027]
[1704107235586,0.48112458,42812.0,42811.0,0.06477027]
[1704107235798,0.43408458,42812.0,42811.0,0.06477027]
[1704107236425,0.43408458,42812.0,42811.0,0.05684]
[1704107241769,0.49007619,42812.0,42811.0,0.05684]
[1704107241972,0.49007619,42812.0,42811.0,0.06477312]
[1704107242392,0.53543619,42812.0,42811.0,0.05684]
[1704107242594,0.53543619,42812.0,42811.0,0.06477312]
[1704107244208,1.24288349,42812.0,42811.0,0.05477312]
[1704107244422,1.59714349,42812.0,42811.0,0.00793312]
[1704107244634,0.29628091,42807.0,42806.0,0.04684]
[1704107244847,1.33325451,42807.0,42806.0,0.04684]
[1704107245055,1.47783379,42807.0,42806.0,0.05416136]
[1704107245261,1.69896637,42807.0,42806.0,0.05416136]
[1704107245727,1.55889379,42807.0,42806.0,0.05416136]
[1704107246144,1.56918379,42807.0,42806.0,0.05416136]
[1704107246350,1.73225637,42807.0,42806.0,0.05416136]
[1704107246560,1.70420509,42807.0,42806.0,0.05416136]
[1704107246806,1.50728581,42807.0,42806.0,0.05416136]
[1704107247017,1.42755681,42807.0,42806.0,0.05416136]
[1704107247222,1.34354451,42807.0,42806.0,0.05416136]
[1704107247432,0.73604817,42807.0,42806.0,0.05416136]
[1704107247653,0.69950468,42807.0,42806.0,0.05416136]
[1704107247859,0.68005663,42807.0,42806.0,0.05416136]
[1704107248486,0.68005663,42807.0,42806.0,0.06416136]
[1704107248696,0.64350711,42807.0,42806.0,0.06416136]
[1704107249454,0.69950468,42807.0,42806.0,0.06416136]
[1704107249666,0.54350711,42807.0,42806.0,0.06416136]
[1704107249858,0.64350711,42807.0,42806.0,0.06416136]
[1704107250226,0.93233571,42807.0,42806.0,0.06416136]
[1704107250480,0.88766802,42807.0,42806.0,0.06416136]
[1704107250842,0.92421796,42807.0,42806.0,0.06416136]
[1704107251049,0.88766802,42807.0,42806.0,0.06416136]
[1704107251887,0.83978802,42807.0,42806.0,0.06416136]
[1704107253724,0.83978802,42807.0,42806.0,0.06422325]
[1704107254499,1.30700102,42807.0,42806.0,0.06422325]
[1704107255332,1.35254102,42807.0,42806.0,0.06422325]
[1704107262219,0.83978802,42807.0,42806.0,0.06422325]
[1704107262465,1.30700102,42807.0,42806.0,0.06422325]
[1704107266619,1.34355055,42807.0,42806.0,0.06422325]
[1704107268898,1.39599055,42807.0,42806.0,0.06422325]
[1704107269506,1.41899055,42807.0,42806.0,0.06422325]
[1704107275231,1.47498812,42807.0,42806.0,0.06422325]
[1704107276480,1.41899055,42807.0,42806.0,0.06422325]
[1704107276846,1.47498812,42807.0,42806.0,0.06422325]
[1704107277886,1.24355055,42807.0,42806.0,0.06422325]
[1704107278863,1.29954812,42807.0,42806.0,0.06422325]
[1704107279060,1.24355055,42807.0,42806.0,0.06422325]
[1704107280288,0.28005664,42807.0,42806.0,0.06422325]
[1704107280672,0.02836049,42809.0,42806.0,0.06422325]
[1704107280673,0.02836049,42809.0,42808.0,0.01371909]
[1704107280915,0.0102,42812.0,42811.0,0.06055909]
[1704107281516,0.04674248,42812.0,42811.0,0.06884694]
[1704107281715,0.0102,42812.0,42811.0,0.06884694]
[1704107282126,0.0102,42812.0,42811.0,0.06512785]
[1704107282546,0.0102,42812.0,42811.0,0.06884694]
[1704107282897,0.0102,42812.0,42811.0,0.06512785]
[1704107283100,0.0132,42812.0,42811.0,0.06884694]
[1704107283333,0.0162,42812.0,42811.0,0.06512785]
[1704107283535,0.0162,42812.0,42811.0,0.05684]
[1704107283747,0.0162,42812.0,42811.0,0.06512785]
[1704107283949,0.0162,42812.0,42811.0,0.06055909]
[1704107284326,0.0162,42812.0,42811.0,0.06879479]
[1704107284815,0.0162,42812.0,42811.0,0.0650757]
[1704107285236,0.0162,42812.0,42811.0,0.06879479]
[1704107285468,0.0162,42812.0,42811.0,0.0650757]
[1704107285667,0.0162,42812.0,42811.0,0.06879479]
[1704107286063,0.0162,42812.0,42811.0,0.06055909]
[1704107287215,0.0162,42812.0,42811.0,0.05684]
[1704107287855,0.0162,42812.0,42811.0,0.0650757]
[1704107288297,0.52401711,42812.0,42811.0,0.0650757]
[1704107291862,0.52401711,42812.0,42811.0,0.05684]
[1704107294342,0.52401711,42812.0,42811.0,0.0651457]
[1704107298135,1.08504067,42812.0,42811.0,0.0083057]
[1704107298338,1.57519867,42812.0,42811.0,0.0083057]
[1704107298589,0.29628091,42809.0,42808.0,0.01]
[1704107298734,1.0332361,42809.0,42808.0,0.01]
[1704107298911,1.1019961,42809.0,42808.0,0.01]
[1704107299778,1.1049961,42809.0,42808.0,0.01]
[1704107300441,1.23373856,42809.0,42808.0,0.01]
[1704107300823,1.23373856,42809.0,42808.0,0.05684]
[1704107301645,1.23673856,42809.0,42808.0,0.05684]
[1704107302316,1.23373856,42809.0,42808.0,0.05684]
[1704107302675,1.23573856,42809.0,42808.0,0.05784]
[1704107302888,1.24173856,42809.0,42808.0,0.05884]
[1704107303090,1.25202856,42809.0,42808.0,0.05884]
[1704107304104,1.57502856,42809.0,42808.0,0.002]
[1704107304309,1.71038856,42809.0,42808.0,0.002]
[1704107305373,2.17757956,42809.0,42808.0,0.002]
[1704107306590,2.17157956,42809.0,42808.0,0.001]
[1704107307250,0.29628091,42802.0,42801.0,15.55684]
[1704107307453,0.52949802,42802.0,42801.0,15.55684]
[1704107307617,0.58799802,42802.0,42801.0,15.56390385]
[1704107307840,0.85199802,42802.0,42801.0,15.56390385]
[1704107308645,1.36711108,42802.0,42801.0,15.56390385]
[1704107308843,1.69011108,42802.0,42801.0,15.55390385]
[1704107309057,1.69011108,42802.0,42801.0,15.50706385]
[1704107309873,1.69011108,42802.0,42801.0,15.51706385]
[1704107310181,1.22284408,42802.0,42801.0,15.51706385]
[1704107310384,1.69011108,42802.0,42801.0,15.51706385]
[1704107310585,1.69011108,42802.0,42801.0,15.50706385]
[1704107310982,1.69011108,42802.0,42801.0,15.51706385]
[1704107312121,1.69011108,42802.0,42801.0,15.50706385]
[1704107312323,1.65355502,42802.0,42801.0,15.50706385]
[1704107312543,1.65355502,42802.0,42801.0,15.51706385]
[1704107313170,1.65355502,42802.0,42801.0,15.50706385]
[1704107313592,1.6901121,42802.0,42801.0,15.50706385]
[1704107314422,1.6901121,42802.0,42801.0,15.51706385]
[1704107314600,1.65355502,42802.0,42801.0,15.51706385]
[1704107315017,1.68131333,42802.0,42801.0,15.51706385]
[1704107316174,1.36203242,42802.0,42801.0,15.51706385]
[1704107316379,1.30353242,42802.0,42801.0,15.56390385]
[1704107316586,1.27577411,42802.0,42801.0,15.56390385]
[1704107316807,1.28341411,42802.0,42801.0,15.56390385]
[1704107318886,0.001,42802.0,42801.0,15.56390385]
[1704107320195,0.001,42802.0,42801.0,15.56762294]
[1704107320820,0.002,42802.0,42801.0,15.57062294]
[1704107321256,0.001,42802.0,42801.0,15.56762294]
[1704107321462,0.01029,42810.0,42805.0,0.00371909]
[1704107321674,0.54350711,42810.0,42809.0,0.01]
[1704107322088,0.24350711,42810.0,42809.0,0.01]
[1704107322220,0.24350711,42810.0,42809.0,0.01710081]
[1704107322659,0.25150711,42810.0,42809.0,0.01710081]
[1704107322878,0.24350711,42810.0,42809.0,0.01710081]
[1704107323213,0.25150711,42810.0,42809.0,0.01810081]
[1704107323433,0.25950711,42810.0,42809.0,0.01810081]
[1704107323657,0.25950711,42810.0,42809.0,0.011]
[1704107324070,0.25150711,42810.0,42809.0,0.011]